fUST/lending_fUST_20250608
["ID","MTS","AMOUNT","RATE_DAILY","PERIOD"]
[364982060,1749378632834,-440.0,0.00019178,2]
[364982061,1749378632844,-440.0,0.00019178,2]
[364982062,1749378632853,-440.0,0.00019178,2]
[364982063,1749378632863,-440.0,0.00019178,2]
[364982064,1749378632872,-440.0,0.00019178,2]
[364982065,1749378632882,-440.0,0.00019178,2]
[364982066,1749378632894,-440.0,0.00019178,2]
[364982067,1749378632903,-390.0,0.00019178,2]
[364982068,1749378632914,-440.0,0.00019178,2]
[364982069,1749378632923,-440.0,0.00019178,2]
[364982070,1749378632933,-420.0,0.00019178,2]
[364982071,1749378632942,-440.0,0.00019178,2]
[364982072,1749378632951,-440.0,0.00019178,2]
[364982073,1749378632962,-440.0,0.00019178,2]
[364982074,1749378632972,-440.0,0.00019178,2]
[364982075,1749378632982,-440.0,0.00019178,2]
[364982076,1749378632992,-440.0,0.00019178,2]
[364982077,1749378633002,-440.0,0.00019178,2]
[364982078,1749378633011,-440.0,0.00019178,2]
[364982079,1749378633021,-424.39754856,0.00019178,2]
[364982080,1749378633030,-440.0,0.00019178,2]
[364982081,1749378633040,-432.26922222,0.00019178,2]
[364982082,1749378633050,-440.0,0.00019178,2]
[364982083,1749378633064,-440.0,0.00019178,2]
[364982084,1749378633074,-420.0,0.00019178,2]
[364982085,1749378633083,-440.0,0.00019178,2]
[364982086,1749378633093,-422.54800341,0.00019178,2]
[364982087,1749378633104,-440.0,0.00019178,2]
[364982088,1749378633114,-405.88909311,0.00019178,2]
[364982089,1749378633124,-440.0,0.00019178,2]
[364982090,1749378633133,-440.0,0.00019178,2]
[364982091,1749378633143,-440.0,0.00019178,2]
[364982092,1749378633153,-440.0,0.00019178,2]
[364982093,1749378633162,-420.61022631,0.00019178,2]
[364982094,1749378633172,-420.0,0.00019178,2]
[364982095,1749378633181,-440.0,0.00019178,2]
[364982096,1749378633191,-440.0,0.00019178,2]
[364982097,1749378633202,-356.46583884,0.00019178,2]
[364982098,1749378633212,-440.0,0.00019178,2]
[364982099,1749378633221,-434.04241686,0.00019178,2]
[364982100,1749378633231,-420.0,0.00019178,2]
[364982101,1749378633241,-430.0,0.00019178,2]
[364982102,1749378633251,-304.25123012,0.00019178,2]
[364982103,1749378633261,-440.0,0.00019178,2]
[364982104,1749378633271,-500.0,0.00019178,2]
[364982105,1749378633280,-414.25997631,0.00019178,2]
[364982106,1749378633290,-440.0,0.00019178,2]
[364982107,1749378633300,-440.0,0.00019178,2]
[364982108,1749378633310,-440.0,0.00019178,2]
[364982109,1749378633319,-440.0,0.00019178,2]
[364982110,1749378633329,-440.0,0.00019178,2]
[364982111,1749378633339,-440.0,0.00019178,2]
[364982112,1749378633349,-440.0,0.00019178,2]
[364982113,1749378633359,-440.0,0.00019178,2]
[364982114,1749378633369,-440.0,0.00019178,2]
[364982115,1749378633379,-440.0,0.00019178,2]
[364982116,1749378633388,-410.0,0.00019178,2]
[364982117,1749378633398,-430.0,0.00019178,2]
[364982118,1749378633408,-440.0,0.00019178,2]
[364982119,1749378633418,-434.78714285,0.00019178,2]
[364982120,1749378633428,-410.0,0.00019178,2]
[364982121,1749378633438,-440.0,0.00019178,2]
[364982122,1749378633448,-410.0,0.00019178,2]
[364982123,1749378633458,-440.0,0.00019178,2]
[364982124,1749378633469,-410.0,0.00019178,2]
[364982125,1749378633479,-440.0,0.00019178,2]
[364982126,1749378633490,-410.0,0.00019178,2]
[364982127,1749378633500,-440.0,0.00019178,2]
[364982128,1749378633509,-440.0,0.00019178,2]
[364982129,1749378633519,-440.0,0.00019178,2]
[364982130,1749378633529,-410.0,0.00019178,2]
[364982131,1749378633539,-440.0,0.00019178,2]
[364982132,1749378633549,-440.0,0.00019178,2]
[364982133,1749378633560,-440.0,0.00019178,2]
[364982134,1749378633570,-410.0,0.00019178,2]
[364982135,1749378633580,-410.0,0.00019178,2]
[364982136,1749378633590,-440.0,0.00019178,2]
[364982137,1749378633600,-420.0,0.00019178,2]
[364982138,1749378633610,-430.0,0.00019178,2]
[364982139,1749378633620,-440.0,0.00019178,2]
[364982140,1749378633630,-410.0,0.00019178,2]
[364982141,1749378633640,-440.0,0.00019178,2]
[364982142,1749378633650,-440.0,0.00019178,2]
[364982143,1749378633660,-440.0,0.00019178,2]
[364982144,1749378633670,-464.06,0.00019178,2]
[364982145,1749378633680,-410.0,0.00019178,2]
[364982146,1749378633690,-400.0,0.00019178,2]
[364982147,1749378633700,-440.0,0.00019178,2]
[364982148,1749378633710,-440.0,0.00019178,2]
[364982149,1749378633721,-440.0,0.00019178,2]
[364982150,1749378633731,-400.13845116,0.00019178,2]
[364982151,1749378633741,-430.0,0.00019178,2]
[364982152,1749378633751,-440.0,0.00019178,2]
[364982153,1749378633761,-440.0,0.00019178,2]
[364982154,1749378633772,-410.0,0.00019178,2]
[364982155,1749378633782,-440.0,0.00019178,2]
[364982156,1749378633793,-440.0,0.00019178,2]
[364982157,1749378633802,-410.0,0.00019178,2]
[364982158,1749378633813,-251.1289143,0.00019178,2]
[364982159,1749378633826,-440.0,0.00019178,2]
[364982160,1749378633836,-440.0,0.00019178,2]
[364982161,1749378633846,-440.0,0.00019178,2]
[364982162,1749378633858,-440.0,0.00019178,2]
[364982163,1749378633868,-440.0,0.00019178,2]
[364982164,1749378633878,-440.0,0.00019178,2]
[364982165,1749378633888,-440.0,0.00019178,2]
[364982166,1749378633899,-440.0,0.00019178,2]
[364982167,1749378633908,-440.0,0.00019178,2]
[364982168,1749378633919,-440.0,0.00019178,2]
[364982169,1749378633929,-440.0,0.00019178,2]
[364982170,1749378633939,-402.34893282,0.00019178,2]
[364982171,1749378633949,-234.68903668,0.00019178,2]
[364982172,1749378633959,-430.0,0.00019178,2]
[364982173,1749378633968,-410.0,0.00019178,2]
[364982174,1749378633978,-440.0,0.00019178,2]
[364982175,1749378633988,-1011.03,0.00019178,2]
[364982176,1749378634124,-440.0,0.00019178,2]
[364982177,1749378634136,-440.0,0.00019178,2]
[364982178,1749378634147,-430.0,0.00019178,2]
[364982179,1749378634156,-440.0,0.00019178,2]
[364982180,1749378634167,-440.0,0.00019178,2]
[364982181,1749378634177,-440.0,0.00019178,2]
[364982182,1749378634187,-440.0,0.00019178,2]
[364982183,1749378634197,-439.48678114,0.00019178,2]
[364982184,1749378634206,-440.0,0.00019178,2]
[364982185,1749378634217,-440.0,0.00019178,2]
[364982186,1749378634227,-440.0,0.00019178,2]
[364982187,1749378634237,-440.0,0.00019178,2]
[364982188,1749378634247,-440.0,0.00019178,2]
[364982189,1749378634257,-440.0,0.00019178,2]
[364982190,1749378634267,-440.0,0.00019178,2]
[364982191,1749378634277,-420.0,0.00019178,2]
[364982192,1749378634287,-540.68514741,0.00019178,2]
[364982193,1749378634296,-440.0,0.00019178,2]
[364982194,1749378634306,-440.0,0.00019178,2]
[364982195,1749378634315,-430.0,0.00019178,2]
[364982196,1749378634325,-440.0,0.00019178,2]
[364982197,1749378634335,-430.0,0.00019178,2]
[364982198,1749378634345,-440.0,0.00019178,2]
[364982199,1749378634354,-440.0,0.00019178,2]
[364982200,1749378634364,-934.29,0.00019178,2]
[364982201,1749378634373,-440.0,0.00019178,2]
[364982202,1749378634383,-466.93746018,0.00019178,2]
[364982203,1749378634393,-440.0,0.00019178,2]
[364982204,1749378634403,-440.0,0.00019178,2]
[364982205,1749378634412,-440.0,0.00019178,2]
[364982206,1749378634423,-678.95,0.00019178,2]
[364982207,1749378634433,-430.0,0.00019178,2]
[364982208,1749378634442,-800.34,0.00019178,2]
[364982209,1749378634454,-440.0,0.00019178,2]
[364982210,1749378634464,-440.0,0.00019178,2]
[364982211,1749378634474,-376.8597173,0.00019178,2]
[364982212,1749378634484,-440.0,0.00019178,2]
[364982213,1749378634494,-440.0,0.00019178,2]
[364982214,1749378634504,-440.0,0.00019178,2]
[364982215,1749378634513,-440.0,0.00019178,2]
[364982216,1749378634523,-440.0,0.00019178,2]
[364982217,1749378634533,-440.0,0.00019178,2]
[364982218,1749378634543,-440.0,0.00019178,2]
[364982219,1749378634553,-440.0,0.00019178,2]
[364982220,1749378634562,-440.0,0.00019178,2]
[364982221,1749378634572,-440.0,0.00019178,2]
[364982222,1749378634581,-440.0,0.00019178,2]
[364982223,1749378634592,-440.0,0.00019178,2]
[364982224,1749378634601,-420.0,0.00019178,2]
[364982225,1749378634611,-440.0,0.00019178,2]
[364982226,1749378634620,-440.0,0.00019178,2]
[364982227,1749378634630,-440.0,0.00019178,2]
[364982228,1749378634639,-420.0,0.00019178,2]
[364982229,1749378634649,-689.57,0.00019178,2]
[364982230,1749378634659,-440.0,0.00019178,2]
[364982231,1749378634669,-527.63,0.00019178,2]
[364982232,1749378634679,-440.0,0.00019178,2]
[364982233,1749378634689,-440.0,0.00019178,2]
[364982234,1749378634699,-440.0,0.00019178,2]
[364982235,1749378634709,-440.0,0.00019178,2]
[364982236,1749378634719,-440.0,0.00019178,2]
[364982237,1749378634729,-842.11,0.00019178,2]
[364982238,1749378634739,-825.77,0.00019178,2]
[364982239,1749378634748,-440.0,0.00019178,2]
[364982240,1749378634758,-440.0,0.00019178,2]
[364982241,1749378634767,-277.71179238,0.00019178,2]
[364982242,1749378634777,-184.40828061,0.00019178,2]
[364982243,1749378634787,-440.0,0.00019178,2]
[364982244,1749378634796,-440.0,0.00019178,2]
[364982245,1749378634805,-440.0,0.00019178,2]
[364982246,1749378634818,-440.0,0.00019178,2]
[364982247,1749378634828,-440.0,0.00019178,2]
[364982248,1749378634837,-440.0,0.00019178,2]
[364982249,1749378634847,-420.0,0.00019178,2]
[364982250,1749378634857,-440.0,0.00019178,2]
[364982251,1749378634867,-422.29655223,0.00019178,2]
[364982252,1749378634876,-440.0,0.00019178,2]
[364982253,1749378634886,-440.0,0.00019178,2]
[364982254,1749378634899,-370.0,0.00019178,2]
[364982255,1749378634909,-440.0,0.00019178,2]
[364982256,1749378634920,-440.0,0.00019178,2]
[364982257,1749378634930,-440.0,0.00019178,2]
[364982258,1749378634940,-4.87032289,0.00019178,2]
[364982259,1749378634962,-435.12967711,0.00019178,2]
[364982260,1749378634973,-410.0,0.00019178,2]
[364982261,1749378634982,-440.0,0.00019178,2]
[364982262,1749378634992,-440.0,0.00019178,2]
[364982263,1749378635001,-148.47541558,0.00019178,2]
[364982272,1749378637909,-161.0937186,0.00016927,2]
[364982273,1749378637919,-309.38640736,0.00019178,2]
[364982274,1749378637929,-440.0,0.00019178,2]
[364982275,1749378637939,-410.0,0.00019178,2]
[364982276,1749378637948,-440.0,0.00019178,2]
[364982277,1749378637958,-430.0,0.00019178,2]
[364982278,1749378637969,-440.0,0.00019178,2]
[364982279,1749378637978,-500.0,0.00019178,2]
[364982280,1749378637988,-420.0,0.00019197,2]
[364982281,1749378637997,-420.0,0.00019197,2]
[364982282,1749378638008,-5230.14,0.00019247,2]
[364982283,1749378638018,-440.0,0.00019452,2]
[364982284,1749378638029,-151.0,0.00019452,2]
[364982285,1749378638041,-440.0,0.00019452,2]
[364982286,1749378638051,-440.0,0.00019452,2]
[364982287,1749378638061,-440.0,0.00019452,2]
[364982288,1749378638072,-445.81,0.00019452,2]
[364982289,1749378638084,-440.0,0.00019452,2]
[364982290,1749378638094,-440.0,0.00019452,2]
[364982291,1749378638105,-440.0,0.00019452,2]
[364982292,1749378638115,-410.0,0.00019452,2]
[364982293,1749378638126,-221.6558406,0.00019452,2]
[364982294,1749378638137,-410.0,0.00019452,2]
[364982295,1749378638148,-420.0,0.00019452,2]
[364982296,1749378638159,-420.0,0.00019452,2]
[364982297,1749378638168,-440.0,0.00019452,2]
[364982298,1749378638179,-440.0,0.00019452,2]
[364982299,1749378638190,-440.0,0.00019452,2]
[364982300,1749378638200,-362.37013248,0.00019452,2]
[364982301,1749378638212,-420.0,0.00019452,2]
[364982302,1749378638221,-440.0,0.00019452,2]
[364982303,1749378638231,-420.0,0.00019452,2]
[364982304,1749378638243,-440.0,0.00019452,2]
[364982305,1749378638253,-420.0,0.00019452,2]
[364982306,1749378638263,-440.0,0.00019452,2]
[364982307,1749378638274,-440.38226405,0.00019452,2]
[364982308,1749378638286,-410.0,0.00019452,2]
[364982309,1749378638296,-440.0,0.00019452,2]
[364982310,1749378638306,-440.0,0.00019452,2]
[364982311,1749378638316,-440.0,0.00019452,2]
[364982312,1749378638327,-464.06,0.00019452,2]
[364982313,1749378638338,-440.0,0.00019452,2]
[364982314,1749378638348,-440.0,0.00019452,2]
[364982315,1749378638357,-440.0,0.00019452,2]
[364982316,1749378638367,-410.0,0.00019452,2]
[364982317,1749378638377,-305.19481354,0.00019452,2]
[364982318,1749378638386,-440.0,0.00019452,2]
[364982319,1749378638395,-440.0,0.00019452,2]
[364982320,1749378638405,-440.0,0.00019452,2]
[364982321,1749378638414,-440.0,0.00019452,2]
[364982322,1749378638424,-420.0,0.00019452,2]
[364982323,1749378638433,-440.0,0.00019452,2]
[364982324,1749378638444,-410.0,0.00019452,2]
[364982325,1749378638454,-390.0,0.00019452,2]
[364982326,1749378638464,-440.0,0.00019452,2]
[364982327,1749378638474,-440.0,0.00019452,2]
[364982328,1749378638483,-420.0,0.00019452,2]
[364982329,1749378638492,-410.0,0.00019452,2]
[364982330,1749378638502,-440.0,0.00019452,2]
[364982331,1749378638513,-1011.03,0.00019452,2]
[364982332,1749378638525,-440.0,0.00019452,2]
[364982333,1749378638534,-420.0,0.00019452,2]
[364982334,1749378638545,-420.0,0.00019452,2]
[364982335,1749378638555,-440.0,0.00019452,2]
[364982336,1749378638565,-410.0,0.00019452,2]
[364982337,1749378638575,-440.0,0.00019452,2]
[364982338,1749378638585,-552.49813785,0.00019452,2]
[364982339,1749378638596,-519.46882734,0.00019452,2]
[364982340,1749378638607,-440.0,0.00019452,2]
[364982341,1749378638618,-440.0,0.00019452,2]
[364982342,1749378638628,-440.0,0.00019452,2]
[364982343,1749378638638,-410.0,0.00019452,2]
[364982344,1749378638649,-440.0,0.00019452,2]
[364982345,1749378638659,-440.0,0.00019452,2]
[364982346,1749378638669,-440.0,0.00019452,2]
[364982347,1749378638679,-420.0,0.00019452,2]
[364982348,1749378638689,-934.29,0.00019452,2]
[364982349,1749378638699,-440.0,0.00019452,2]
[364982350,1749378638708,-410.0,0.00019452,2]
[364982351,1749378638718,-440.0,0.00019452,2]
[364982352,1749378638728,-440.0,0.00019452,2]
[364982353,1749378638737,-678.95,0.00019452,2]
[364982354,1749378638747,-800.34,0.00019452,2]
[364982355,1749378638757,-410.0,0.00019452,2]
[364982356,1749378638766,-420.0,0.00019452,2]
[364982357,1749378638776,-420.0,0.00019452,2]
[364982358,1749378638785,-440.0,0.00019452,2]
[364982359,1749378638795,-440.0,0.00019452,2]
[364982360,1749378638805,-420.0,0.00019452,2]
[364982361,1749378638817,-440.0,0.00019452,2]
[364982362,1749378638827,-440.0,0.00019452,2]
[364982363,1749378638836,-440.0,0.00019452,2]
[364982364,1749378638845,-420.0,0.00019452,2]
[364982365,1749378638855,-440.0,0.00019452,2]
[364982366,1749378638864,-440.0,0.00019452,2]
[364982367,1749378638873,-206.76191148,0.00019452,2]
[364982368,1749378638883,-410.0,0.00019452,2]
[364982369,1749378638893,-440.0,0.00019452,2]
[364982370,1749378638903,-420.0,0.00019452,2]
[364982371,1749378638913,-420.0,0.00019452,2]
[364982372,1749378638923,-689.57,0.00019452,2]
[364982373,1749378638932,-440.0,0.00019452,2]
[364982374,1749378638942,-527.63,0.00019452,2]
[364982375,1749378638952,-420.0,0.00019452,2]
[364982376,1749378638962,-440.0,0.00019452,2]
[364982377,1749378638972,-420.0,0.00019452,2]
[364982378,1749378638981,-251.62774334,0.00019452,2]
[364982379,1749378638991,-842.11,0.00019452,2]
[364982380,1749378639000,-825.77,0.00019452,2]
[364982381,1749378639010,-334.88538385,0.00019452,2]
[364982382,1749378639019,-410.0,0.00019452,2]
[364982383,1749378639030,-382.23534825,0.00019452,2]
[364982384,1749378639040,-298.1015585,0.00019452,2]
[364982385,1749378639051,-512.0083934,0.00019452,2]
[364982386,1749378639061,-414.46301175,0.00019452,2]
[364982387,1749378639071,-410.0,0.00019452,2]
[364982388,1749378639081,-410.0,0.00019452,2]
[364982389,1749378639092,-440.0,0.00019452,2]
[364982390,1749378639102,-410.0,0.00019452,2]
[364982391,1749378639111,-433.21636399,0.00019452,2]
[364982392,1749378639120,-410.0,0.00019452,2]
[364982393,1749378639129,-440.0,0.00019452,2]
[364982394,1749378639139,-410.0,0.00019452,2]
[364982395,1749378639148,-420.0,0.00019452,2]
[364982396,1749378639158,-440.0,0.00019452,2]
[364982397,1749378639167,-410.0,0.00019452,2]
[364982398,1749378639177,-440.0,0.00019452,2]
[364982399,1749378639186,-440.0,0.00019452,2]
[364982400,1749378639195,-500.0,0.00019452,2]
[364982401,1749378639205,-440.0,0.00019726,2]
[364982402,1749378639214,-440.0,0.00019726,2]
[364982403,1749378639224,-585.79,0.00019726,2]
[364982404,1749378639233,-440.0,0.00019726,2]
[364982405,1749378639244,-522.26,0.00019726,2]
[364982406,1749378639254,-440.0,0.00019726,2]
[364982407,1749378639264,-440.0,0.00019726,2]
[364982408,1749378639274,-440.0,0.00019726,2]
[364982409,1749378639283,-400.0,0.00019726,2]
[364982410,1749378639292,-464.06,0.00019726,2]
[364982411,1749378639303,-410.0,0.00019726,2]
[364982412,1749378639314,-440.0,0.00019726,2]
[364982413,1749378639324,-240.21576669,0.00019726,2]
[364982414,1749378639333,-440.0,0.00019726,2]
[364982415,1749378639342,-530.02,0.00019726,2]
[364982416,1749378639352,-440.0,0.00019726,2]
[364982417,1749378639362,-410.0,0.00019726,2]
[364982418,1749378639372,-390.0,0.00019726,2]
[364982419,1749378639381,-410.0,0.00019726,2]
[364982420,1749378639390,-1011.03,0.00019726,2]
[364982421,1749378639400,-440.0,0.00019726,2]
[364982422,1749378639411,-440.0,0.00019726,2]
[364982423,1749378639421,-512.06063339,0.00019726,2]
[364982425,1749378639431,-410.0,0.00019726,2]
[364982427,1749378639440,-440.0,0.00019726,2]
[364982428,1749378639451,-410.0,0.00019726,2]
[364982429,1749378639461,-390.0,0.00019726,2]
[364982430,1749378639471,-440.0,0.00019726,2]
[364982431,1749378639481,-410.0,0.00019726,2]
[364982432,1749378639491,-934.29,0.00019726,2]
[364982433,1749378639500,-440.0,0.00019726,2]
[364982434,1749378639510,-410.0,0.00019726,2]
[364982435,1749378639521,-410.0,0.00019726,2]
[364982436,1749378639533,-678.95,0.00019726,2]
[364982437,1749378639545,-800.34,0.00019726,2]
[364982438,1749378639555,-440.0,0.00019726,2]
[364982439,1749378639565,-440.0,0.00019726,2]
[364982440,1749378639574,-410.0,0.00019726,2]
[364982441,1749378639585,-410.0,0.00019726,2]
[364982442,1749378639595,-390.0,0.00019726,2]
[364982443,1749378639606,-440.0,0.00019726,2]
[364982444,1749378639616,-440.0,0.00019726,2]
[364982445,1749378639626,-410.0,0.00019726,2]
[364982446,1749378639636,-689.57,0.00019726,2]
[364982447,1749378639647,-440.0,0.00019726,2]
[364982448,1749378639658,-527.63,0.00019726,2]
[364982449,1749378639668,-440.0,0.00019726,2]
[364982450,1749378639677,-842.11,0.00019726,2]
[364982451,1749378639687,-825.77,0.00019726,2]
[364982452,1749378639800,-440.0,0.00019726,2]
[364982453,1749378639812,-440.0,0.00019726,2]
[364982454,1749378639824,-440.0,0.00019726,2]
[364982455,1749378639834,-440.0,0.00019726,2]
[364982456,1749378639844,-440.0,0.00019726,2]
[364982457,1749378639854,-500.0,0.00019726,2]
[364982458,1749378639864,-423.98131849,0.00019882,2]
[364982459,1749378639874,-229.60437222,0.00019882,2]
[364982460,1749378639883,-213.05153702,0.00019882,2]
[364982461,1749378639894,-160.0,0.00019882,2]
[364982462,1749378639905,-6101.83,0.00019988,2]
[364982463,1749378639914,-440.0,0.0002,2]
[364982464,1749378639924,-440.0,0.0002,2]
[364982465,1749378639933,-440.0,0.0002,2]
[364982466,1749378639943,-440.0,0.0002,2]
[364982467,1749378639952,-464.06,0.0002,2]
[364982468,1749378639962,-410.0,0.0002,2]
[364982469,1749378639972,-440.0,0.0002,2]
[364982470,1749378639982,-440.0,0.0002,2]
[364982471,1749378639992,-1011.03,0.0002,2]
[364982472,1749378640002,-440.0,0.0002,2]
[364982473,1749378640011,-360.24165597,0.0002,2]
[364982474,1749378640021,-440.0,0.0002,2]
[364982475,1749378640031,-3911.35232731,0.0002,20]
[364982476,1749378640040,-320.58,0.0002,2]
[364982477,1749378640049,-440.0,0.0002,2]
[364982478,1749378640059,-934.29,0.0002,2]
[364982479,1749378640069,-440.0,0.0002,2]
[364982480,1749378640078,-678.95,0.0002,2]
[364982481,1749378640088,-800.34,0.0002,2]
[364982482,1749378640097,-440.0,0.0002,2]
[364982483,1749378640106,-440.0,0.0002,2]
[364982484,1749378640116,-440.0,0.0002,2]
[364982485,1749378640125,-380.0,0.0002,2]
[364982486,1749378640135,-689.57,0.0002,2]
[364982487,1749378640145,-410.0,0.0002,2]
[364982488,1749378640154,-527.63,0.0002,2]
[364982489,1749378640164,-440.0,0.0002,2]
[364982490,1749378640173,-842.11,0.0002,2]
[364982491,1749378640182,-825.77,0.0002,2]
[364982492,1749378640192,-440.0,0.0002,2]
[364982493,1749378640201,-390.0,0.0002,2]
[364982494,1749378640211,-410.0,0.0002,2]
[364982495,1749378640220,-400.0,0.0002,2]
[364982496,1749378640230,-440.0,0.0002,2]
[364982497,1749378640239,-476.43689039,0.00020121,2]
[364982498,1749378640248,-180.355,0.00020157,2]
[364982499,1749378640258,-236.820701,0.00020187,2]
[364982500,1749378640267,-440.0,0.00020273,2]
[364982501,1749378640277,-439.57455823,0.00020273,2]
[364982502,1749378640287,-440.0,0.00020273,2]
[364982503,1749378640296,-464.06,0.00020273,2]
[364982504,1749378640306,-440.0,0.00020273,2]
[364982505,1749378640315,-440.0,0.00020273,2]
[364982506,1749378640325,-1011.03,0.00020273,2]
[364982507,1749378640334,-440.0,0.00020273,2]
[364982508,1749378640344,-440.0,0.00020273,2]
[364982509,1749378640355,-440.0,0.00020273,2]
[364982510,1749378640366,-934.29,0.00020273,2]
[364982511,1749378640376,-440.0,0.00020273,2]
[364982512,1749378640386,-678.95,0.00020273,2]
[364982513,1749378640396,-800.34,0.00020273,2]
[364982514,1749378640405,-440.0,0.00020273,2]
[364982515,1749378640416,-440.0,0.00020273,2]
[364982516,1749378640428,-390.0,0.00020273,2]
[364982517,1749378640437,-689.57,0.00020273,2]
[364982518,1749378640447,-527.63,0.00020273,2]
[364982519,1749378640458,-380.0,0.00020273,2]
[364982520,1749378640468,-842.11,0.00020273,2]
[364982521,1749378640478,-825.77,0.00020273,2]
[364982522,1749378640489,-440.0,0.00020273,2]
[364982523,1749378640499,-440.0,0.00020273,2]
[364982524,1749378640510,-440.0,0.00020547,2]
[364982525,1749378640521,-440.0,0.00020547,2]
[364982526,1749378640531,-464.06,0.00020547,2]
[364982527,1749378640542,-440.0,0.00020547,2]
[364982528,1749378640552,-1011.03,0.00020547,2]
[364982529,1749378640563,-440.0,0.00020547,2]
[364982530,1749378640573,-440.0,0.00020547,2]
[364982531,1749378640583,-934.29,0.00020547,2]
[364982532,1749378640592,-440.0,0.00020547,2]
[364982533,1749378640602,-678.95,0.00020547,2]
[364982534,1749378640611,-800.34,0.00020547,2]
[364982535,1749378640620,-440.0,0.00020547,2]
[364982536,1749378640631,-440.0,0.00020547,2]
[364982537,1749378640641,-689.57,0.00020547,2]
[364982538,1749378640650,-527.63,0.00020547,2]
[364982539,1749378640660,-842.11,0.00020547,2]
[364982540,1749378640669,-825.77,0.00020547,2]
[364982541,1749378640680,-440.0,0.00020547,2]
[364982542,1749378640690,-440.0,0.00020547,2]
[364982543,1749378640700,-651.22,0.000206,2]
[364982544,1749378640710,-160.0,0.00020616,3]
[364982545,1749378640719,-6973.52,0.00020728,2]
[364982546,1749378640729,-440.0,0.00020821,2]
[364982547,1749378640739,-440.0,0.00020821,2]
[364982548,1749378640749,-464.06,0.00020821,2]
[364982549,1749378640759,-440.0,0.00020821,2]
[364982550,1749378640768,-1011.03,0.00020821,2]
[364982551,1749378640778,-440.0,0.00020821,2]
[364982552,1749378640801,-440.0,0.00020821,2]
[364982553,1749378640811,-934.29,0.00020821,2]
[364982554,1749378640825,-440.0,0.00020821,2]
[364982555,1749378640836,-678.95,0.00020821,2]
[364982556,1749378640847,-800.34,0.00020821,2]
[364982557,1749378640859,-440.0,0.00020821,2]
[364982558,1749378640873,-440.0,0.00020821,2]
[364982559,1749378640887,-689.57,0.00020821,2]
[364982560,1749378640900,-527.63,0.00020821,2]
[364982561,1749378640910,-842.11,0.00020821,2]
[364982562,1749378640920,-825.77,0.00020821,2]
[364982563,1749378640931,-440.0,0.00020821,2]
[364982564,1749378640941,-1100.0,0.00020883,2]
[364982565,1749378640951,-1419.41,0.000209,2]
[364982566,1749378640960,-224.0,0.00020955,2]
[364982567,1749378640971,-587.0,0.00020955,2]
[364982568,1749378640981,-440.0,0.00021095,2]
[364982569,1749378640991,-440.0,0.00021095,2]